[Event "1st Chessable Sunway Formentera 2022"]
[Site "Formentera Punta Prima"]
[Date "2022.04.29"]
[Round "1"]
[White "Prodhomme, Boris"]
[Black "Jarmula, Lukasz"]
[Result "0-1"]
[ECO "E73"]
[WhiteElo "2045"]
[BlackElo "2459"]
[Annotator "TA"]
[PlyCount "60"]
[EventDate "2022.05.05"]
[EventType "swiss"]
[EventCountry "ESP"]
[SourceTitle "playchess.com"]
[Source "ChessBase"]
[SourceQuality "1"]
[TimeControl "40/5400+30:1800+30"]

{[%evp 13,60,40,60,-6,0,0,0,-15,-14,-57,-62,-89,-35,-41,-59,-127,-134,-166,-158,-364,-187,-225,-236,-216,-230,-316,-316,-307,-307,-272,-279,-285,-217,-313,-313,-304,-309,-477,-480,-468,-460,-389,-217,-260,-250,-377,-221,-858,-801]} 1. d4 {[%emt 0:00:03]} Nf6 {[%emt 0:00:06]} 2. c4 {[%emt 0:00:04]} c5 {[%emt 0:00:06]} 3. d5 {[%emt 0:00:56]} g6 {[%emt 0:00:37]} 4. Nc3 {[%emt 0:00:11]} Bg7 {[%emt 0:00:06]} 5. e4 {[%emt 0:02:17]} d6 {[%emt 0:00:08]} 6. Be2 {[%emt 0:03:37]} O-O {[%emt 0:00:22][%cal Bh8f8,Bf8e8,Be8e4][%mdl 32]} 7. Be3 {[%emt 0:02:05]} e6 {[%emt 0:02:22]} 8. h4 {[%emt 0:06:42] E73: King's Indian: Averbakh Variation without 6...c5.} (8. Nf3 $14) 8... exd5 {[%emt 0:03:15]} 9. exd5 {[%emt 0:01:26]} h5 {[%emt 0:00:31] [#]} 10. Bg5 $146 {[%emt 0:04:33] The position is equal.} ({Predecessor:} 10. Qd2 Re8 11. O-O-O Qa5 12. f3 a6 13. Nh3 b5 14. Rdg1 Nh7 15. g4 hxg4 16. fxg4 {0-1 (24) Schmalhofer,A-Bitsch,T Hassloch 1998}) 10... Re8 {[%emt 0:01:36]} 11. Nh3 {[%emt 0:11:35]} Qb6 {[%emt 0:03:53]} 12. b3 {[%emt 0:18:57] [#]} Ne4 {[%emt 0:04:23]} (12... Na6 $1 $17) 13. Nxe4 $15 {[%emt 0:02:55]} Rxe4 {[%emt 0:02:12]} 14. Rc1 {[%emt 0:13:30]} (14. Kf1 $15) 14... Na6 $17 {[%emt 0:02:22] Black is more active.} 15. Be3 {[%emt 0:13:50]} Rxh4 {[%emt 0:05:13]} 16. Bf1 $2 {[%emt 0:06:21] White does not recover from this.} (16. Qd2 $17 {was necessary.}) 16... Bd4 {[%emt 0:05:03]} (16... Qa5+ $142 17. Qd2 Nb4) 17. g3 {[%emt 0:01:36] [#]} Bxe3 $1 {[%emt 0:00:31]} 18. fxe3 {[%emt 0:02:33]} Re4 {[%emt 0:00:16]} 19. Kf2 {[%emt 0:03:12]} Bxh3 {[%emt 0:01:38]} 20. Bxh3 {[%emt 0:00:41]} Rae8 {[%emt 0:00:09]} 21. Re1 {[%emt 0:00:35]} Qd8 {[%emt 0:00:30] ...Qg5 is the strong threat.} 22. Bg2 {[%emt 0:02:10]} R4e5 {[%emt 0:00:22] Threatens to win with ...Qf6+.} 23. Qd2 {[%emt 0:01:07]} (23. e4 {might work better.}) 23... Qf6+ $19 {[%emt 0:00:48]} ({Don't blunder} 23... Qg5 $2 24. Rc3 $19) 24. Kg1 {[%emt 0:00:20]} Qg5 {[%emt 0:00:17]} 25. Kf2 {[%emt 0:00:42]} (25. Rc3 {keeps fighting.}) 25... h4 {[%emt 0:06:15]} 26. gxh4 {[%emt 0:00:05]} Qxh4+ {[%emt 0:00:06]} 27. Kg1 {[%emt 0:00:16]} Qg5 {[%emt 0:00:08]} (27... Rh5 $142 {Hoping for ...Qh2+.} 28. e4 Qh2+ 29. Kf1 f5) 28. Rc3 {[%emt 0:00:45]} Nb8 {[%emt 0:00:42]} 29. Rd3 {[%emt 0:01:03]} (29. Re2 {is a better defense.}) 29... Nd7 {[%emt 0:00:24]} (29... Re4 $142 30. Kf1 Nd7) 30. Rc3 $2 {[%emt 0:00:46]} (30. e4) 30... Nf6 {[%emt 0:00:25] Weighted Error Value: White=0.70/Black=0.27 (precise)} 0-1

[Event "1st Chessable Sunway Formentera 2022"]
[Site "Formentera Punta Prima"]
[Date "2022.04.29"]
[Round "1"]
[White "Fox, Anthony"]
[Black "Park, Evan"]
[Result "0-1"]
[ECO "C48"]
[WhiteElo "1934"]
[BlackElo "2431"]
[Annotator "TA"]
[PlyCount "76"]
[EventDate "2022.05.05"]
[EventType "swiss"]
[EventCountry "ESP"]
[SourceTitle "playchess.com"]
[Source "ChessBase"]
[SourceQuality "1"]
[TimeControl "40/5400+30:1800+30"]

{[%evp 9,76,16,8,4,33,3,19,6,2,0,0,0,0,0,0,-19,22,-32,2,-17,0,-27,-13,-23,-26,-26,-26,-19,9,-33,-42,-47,-31,-41,-37,-40,-20,-61,-48,-61,-46,-81,-75,-188,-205,-197,-196,-184,-141,-274,-2,-196,-103,-175,-175,-506,-502,-498,-500,-499,-499,-574,-574,-775,-807,-830,-810,-737,-727]} 1. e4 {[%emt 0:00:00]} e5 {[%emt 0:00:30]} 2. Nf3 {[%emt 1:31:13]} Nc6 {[%emt 0:00:00]} 3. Nc3 {[%emt 0:00:00]} Nf6 {[%emt 0:00:00]} 4. Bb5 {[%emt 0:00:56]} Bd6 {[%emt 0:00:00]} 5. d3 {[%emt 0:00:00]} O-O {[%emt 0:00:00]} 6. O-O {[%emt 0:00:00] C48: Four Knights: 4 Bb5, replies other than 4...Bb4.} h6 {[%emt 0:00:00]} 7. Ne2 {[%emt 0:00:00]} a6 {[%emt 0:00:00] has lost popularity (7...Re8).} 8. Ba4 {[%emt 0:00:00] The position is equal.} Re8 {[%emt 0:00:00]} 9. c3 {[%emt 0:00:00]} Bf8 {[%emt 0:00:00]} 10. Ng3 {[%emt 0:00:00]} d5 {[%emt 0:00:00] [#]} 11. h3 $146 {[%emt 0:00:00]} ({Predecessor:} 11. exd5 Qxd5 12. Re1 Bg4 13. h3 Bxf3 14. Qxf3 Qxf3 15. gxf3 Rad8 16. Rd1 Nd5 17. Kf1 {1-0 (56) Svane,F (2421)-Huschenbeth,N (2604) Magdeburg 2021}) 11... b5 {[%emt 0:00:00]} 12. Bb3 {[%emt 0:00:00]} Bb7 {[%emt 0:00:00]} 13. Qe2 {[%emt 0:00:00]} ({White should play} 13. exd5 $11 Nxd5 14. Re1) 13... Qd7 {[%emt 0:00:00]} 14. Rd1 {[%emt 0:00:00]} Rad8 {[%emt 0:00:00]} 15. a4 {[%emt 0:00:00]} Na5 {[%emt 0:00:00]} 16. Bc2 {[%emt 0:00:00] Hoping for axb5.} b4 {[%emt 0:00:00]} 17. cxb4 {[%emt 0:00:00]} Bxb4 {[%emt 0:00:00]} 18. Bd2 {[%emt 0:00:00]} Nc6 {[%emt 0:00:00]} 19. Bxb4 {[%emt 0:00:00]} Nxb4 {[%emt 0:00:00]} 20. Bb3 {[%emt 0:00:00]} a5 {[%emt 0:00:00]} 21. Qe3 {[%emt 0:00:00]} d4 {[%emt 0:00:00]} 22. Qc1 {[%emt 0:00:00]} Ba6 {[%emt 0:00:00]} 23. Bc4 {[%emt 0:00:00]} Qc6 {[%emt 0:00:00] Threatens to win with ...Bxc4.} 24. Nd2 {[%emt 0:00:00]} Nd7 {[%emt 0:00:00] Black is much more active.} 25. Bxa6 {[%emt 0:00:00]} Qxa6 {[%emt 0:00:00]} 26. Nc4 {[%emt 0:00:00]} (26. Nb3 $17 {might work better.}) 26... Nc5 $19 {[%emt 0:00:00]} 27. Ra3 {[%emt 0:00:00]} Re6 {[%emt 0:00:00]} 28. Nf5 {[%emt 0:00:00]} Rde8 {[%emt 0:00:00]} 29. f4 {[%emt 0:00:00]} (29. Qd2 $17) 29... exf4 $2 {[%emt 0:00:00]} (29... Rc6 $1 $19 {White must now prevent ...Ncxd3.} 30. Nxe5 Ncxd3 $1 {[%mdl 512]}) 30. Nxd4 $2 {[%emt 0:00:00]} (30. Qxf4 $11 {and White is okay.} Ncxd3 31. Qg3) 30... Rg6 {[%emt 0:00:00]} (30... Nbxd3 $19 31. Raxd3 Nxd3) 31. Nf3 {[%emt 0:00:00] [#]} (31. Kh1 $17) 31... Rc6 $1 {[%emt 0:00:00]} 32. Qxf4 $2 {[%emt 0:00:00]} (32. Nfe5 {is more resistant.} Ncxd3 33. Nxd3 (33. Rdxd3 $2 Nxd3 34. Rxd3 Rxe5 $19) 33... Rxc4 34. Qxf4 Qb6+ 35. Kh2 Rcxe4 36. Qf2) 32... Ncxd3 {[%emt 0:00:00][%mdl 64] Remove Defender. Black is clearly winning.} 33. Raxd3 {[%emt 0:00:00]} Nxd3 {[%emt 0:00:00]} 34. Rxd3 {[%emt 0:00:00] And now b3 would win.} Qxc4 {[%emt 0:00:00]} 35. Rc3 {[%emt 0:00:00]} Qxa4 {[%emt 0:00:00]} 36. Rxc6 {[%emt 0:00:00]} Qxc6 {[%emt 0:00:00]} 37. e5 {[%emt 0:00:00]} Qb6+ {[%emt 0:00:00]} 38. Kh2 {[%emt 0:00:00]} Qxb2 {[%emt 0:00:00] Weighted Error Value: White=0.52/Black=0.23 (precise)} 0-1

[Event "1st Chessable Sunway Formentera 2022"]
[Site "Formentera Punta Prima"]
[Date "2022.04.29"]
[Round "1"]
[White "Aledo Yanguas, David"]
[Black "Eugene, Floryan"]
[Result "1-0"]
[ECO "C24"]
[WhiteElo "1908"]
[BlackElo "2370"]
[Annotator "TA"]
[PlyCount "123"]
[EventDate "2022.05.05"]
[EventType "swiss"]
[EventCountry "ESP"]
[SourceTitle "playchess.com"]
[Source "ChessBase"]
[SourceQuality "1"]
[TimeControl "40/5400+30:1800+30"]

{[%evp 9,123,2,26,31,36,0,0,0,3,0,51,52,54,59,48,39,40,31,55,34,34,25,61,-39,-41,-25,-28,-116,-113,-81,-83,-81,13,17,18,19,81,30,44,-25,12,0,0,0,97,96,247,266,250,272,257,257,244,243,288,231,333,307,382,379,397,397,502,487,489,487,487,502,531,509,591,577,724,706,745,490,473,0,817,805,827,787,720,536,580,573,577,615,627,632,775,767,1083,921,1345,1357,1267,1293,1193,1107,4137,4137,4133,4133,29981,29982,29984,29985,29987,29988,29988,29989,29989,29989,29990,29991]} 1. e4 {[%emt 0:00:02]} e5 {[%emt 0:00:53]} 2. Bc4 {[%emt 0:00:16]} Nf6 {[%emt 0:01:53]} 3. d3 {[%emt 0:00:06]} c6 {[%emt 0:00:35]} 4. Nf3 {[%emt 0:00:07]} d5 {[%emt 0:00:39]} 5. Bb3 {[%emt 0:00:07]} a5 {[%emt 0:08:07] And now ...a4 would win.} 6. a4 {[%emt 0:03:19] C24: Bishop's Opening: 2...Nf6.} (6. Nxe5 $2 a4 7. Bxd5 cxd5 8. exd5 Nxd5 $19) 6... Bd6 {[%emt 0:01:01]} 7. Nc3 {[%emt 0:00:08][%cal Re4d5]} d4 {[%emt 0:06:40]} 8. Ne2 {[%emt 0:00:09] The position is equal.} Na6 {[%emt 0:01:35]} 9. c3 {[%emt 0:03:18] [#]} Nc5 $146 {[%emt 0:21:24]} (9... Bg4 $11) ({Predecessor:} 9... dxc3 10. bxc3 O-O 11. O-O Qe7 12. Ng3 Be6 13. Bc2 Nd7 14. Ng5 Rad8 15. Nxe6 fxe6 {0-1 (28) Szopa,E (1758)-Starosta,M (1894) Sypniewo 2022}) 10. cxd4 $14 {[%emt 0:11:09]} Nxb3 {[%emt 0:10:39]} 11. Qxb3 {[%emt 0:01:22]} Bb4+ {[%emt 0:00:07]} 12. Kf1 {[%emt 0:01:16]} exd4 {[%emt 0:01:34]} 13. Nfxd4 {[%emt 0:03:24]} O-O {[%emt 0:04:59]} 14. h3 {[%emt 0:02:54]} Re8 {[%emt 0:24:54]} 15. Be3 {[%emt 0:01:32]} c5 {[%emt 0:00:57]} 16. Nf3 {[%emt 0:05:36]} (16. Nb5 $14) 16... b6 $15 {[%emt 0:00:54][%mdl 1024] Black has compensation.} (16... Be6 17. Qc2 $11) 17. Rd1 {[%emt 0:04:26]} (17. Ng5 Qd7 18. Kg1 Ba6 $17) 17... Ra7 {[%emt 0:00:09]} 18. g4 {[%emt 0:03:48]} (18. Kg1 $11) 18... Rd7 {[%emt 0:00:36][%cal Of6e4]} 19. Kg2 {[%emt 0:00:08]} Ba6 {[%emt 0:00:16][%cal Ra6d3]} 20. Nf4 {[%emt 0:06:06]} Qa8 {[%emt 0:03:05]} (20... h6 $17 {White must now prevent ...g5.} 21. g5 hxg5 22. Nxg5 c4 23. dxc4 Nxe4 24. Rxd7 Qxd7 25. Nxe4 Rxe4) 21. g5 {[%emt 0:05:31]} c4 $1 {[%emt 0:00:37]} 22. dxc4 {[%emt 0:02:51]} Rxd1 {[%emt 0:01:42]} (22... Rc7 $1 $11 23. Rd4 (23. gxf6 Bxc4 24. Nd5 Rcc8 $11) 23... Nxe4) 23. Rxd1 $16 {[%emt 0:02:24]} (23. Qxd1 $6 Nxe4 24. Nd5 Qc6 $11) 23... Qc8 {[%emt 0:03:48]} 24. Bxb6 {[%emt 0:09:37]} (24. gxf6 Bxc4 25. Rc1 (25. Qc2 $2 Bf1+ 26. Rxf1 Qxc2 $19) 25... Bxb3 $17) ({White should try} 24. Qc2 $14 Nxe4 25. Nd5 (25. Bxb6 Qc6 $11)) 24... Nxe4 {[%emt 0:01:13]} 25. Rd4 {[%emt 0:04:08]} Qf5 {[%emt 0:01:08][%csl LRf4,LRg5]} 26. Qe3 {[%emt 0:00:56]} Bd6 {[%emt 0:01:01]} (26... Bb7 $1 $11 {keeps the balance.}) 27. Nd5 {[%emt 0:04:29] Hoping for Nc3. White now steadily converts the win.} (27. Rxd6 $2 Nxd6 28. Qd4 Nxc4 $19) 27... Bc8 $2 {[%emt 0:00:03] [#]} (27... Bxc4 $16 28. Rxc4 Qxd5) 28. Nd2 $1 $18 {[%emt 0:02:57]} (28. Kg1 Bd7 29. Nh4 (29. Bxa5 $2 Ng3 $19) 29... Qe5 $14) 28... Qxg5+ {[%emt 0:01:01]} 29. Qxg5 {[%emt 0:00:23] Dancing on a razor blade.} Nxg5 {[%emt 0:00:01] [#]} 30. Nf6+ $1 {[%emt 0:03:23][%mdl 512]} gxf6 {[%emt 0:00:03]} 31. Rxd6 {[%emt 0:00:04]} Bb7+ {[%emt 0:01:54]} 32. Kg3 {[%emt 0:02:15]} Re1 {[%emt 0:00:01]} (32... Ra8 {keeps fighting.} 33. Rxf6 Kg7) 33. f3 {[%emt 0:05:12]} ({Resist} 33. Bxa5 Rg1+ 34. Kh4 Ra1) (33. Rxf6 $6 Re2 $18) 33... Rh1 {[%emt 0:01:06]} 34. Rxf6 {[%emt 0:01:03]} Rxh3+ {[%emt 0:01:22]} 35. Kg2 {[%emt 0:01:41]} ({But not} 35. Kg4 Rh2 36. Bxa5 (36. Kxg5 Rxd2 37. Bxa5 Rxb2 $16) 36... Rg2+ 37. Kf4 Ne6+ 38. Ke3 Bc6 $18) 35... Rh4 {[%emt 0:00:03]} 36. Bxa5 {[%emt 0:01:39]} Ne6 {[%emt 0:00:47]} 37. Bc3 {[%emt 0:01:07]} Rg4+ {[%emt 0:01:14]} 38. Kf2 {[%emt 0:00:34]} Rh4 {[%emt 0:00:08]} 39. Rf5 {[%emt 0:01:03]} Rh2+ {[%emt 0:00:04]} 40. Kg3 {[%emt 0:00:00]} Re2 {[%emt 0:00:00]} 41. Rb5 {[%emt 0:01:25]} Nd8 {[%emt 0:01:43]} 42. Ba5 {[%emt 0:01:01]} Nc6 {[%emt 0:00:02]} 43. Bc3 {[%emt 0:01:01]} (43. Rxb7 $18 Nxa5 44. Rd7) 43... Bc8 $2 {[%emt 0:00:04][%mdl 8192]} (43... Nd8 $11 44. Ne4 f5) 44. Ne4 {[%emt 0:01:26]} f5 {[%emt 0:00:28]} 45. Nd6 {[%emt 0:00:21][%csl LRc8,LRf5]} Bd7 {[%emt 0:02:08]} 46. Nxf5 {[%emt 0:00:12]} h5 {[%emt 0:00:43]} 47. Nh6+ {[%emt 0:00:16]} Kh7 {[%emt 0:00:08]} 48. Rxh5 {[%emt 0:00:15]} Kg6 {[%emt 0:00:20]} 49. Rh1 {[%emt 0:01:31]} Ne7 {[%emt 0:00:42]} 50. a5 {[%emt 0:00:42]} Re3 {[%emt 0:04:08]} 51. Ng4 {[%emt 0:03:03]} Rxf3+ {[%emt 0:00:04]} 52. Kxf3 {[%emt 0:00:05]} Bc6+ {[%emt 0:00:01]} 53. Kf4 {[%emt 0:00:09] Ne5+ would kill now.} Bxh1 {[%emt 0:00:03][%mdl 4096] Endgame KBN-KBN} 54. Ne5+ {[%emt 0:00:16]} Kf6 {[%emt 0:00:02]} 55. Nf3+ {[%emt 0:00:39]} Ke6 {[%emt 0:00:06]} 56. a6 {[%emt 0:00:32] White wants to mate with a7.} Nc6 {[%emt 0:01:08]} 57. b4 {[%emt 0:01:29] White mates.} Kd7 {[%emt 0:00:03]} 58. b5 {[%emt 0:00:50]} Kc7 {[%emt 0:01:04]} 59. bxc6 {[%emt 0:00:48]} Kxc6 {[%emt 0:00:05]} 60. Ba5 {[%emt 0:00:56]} Bg2 {[%emt 0:00:26]} 61. Kg3 {[%emt 0:00:23]} Bh1 {[%emt 0:00:12]} 62. c5 {[%emt 0:00:15] Weighted Error Value: White=0.32/Black=0.35} 1-0

[Event "1st Chessable Sunway Formentera 2022"]
[Site "Formentera Punta Prima"]
[Date "2022.04.30"]
[Round "2"]
[White "Gukesh D"]
[Black "Alinasab, Mobina"]
[Result "1-0"]
[ECO "B45"]
[WhiteElo "2659"]
[BlackElo "2373"]
[Annotator "TA"]
[PlyCount "79"]
[EventDate "2022.05.05"]
[EventType "swiss"]
[EventCountry "ESP"]
[SourceTitle "playchess.com"]
[Source "ChessBase"]
[SourceQuality "1"]
[TimeControl "40/5400+30:1800+30"]

{[%evp 27,79,0,0,0,0,0,33,0,46,38,95,43,83,76,105,75,76,64,95,62,93,86,84,70,66,83,151,132,189,181,191,195,200,166,162,151,163,150,134,127,187,201,266,251,262,254,452,443,401,418,825,811,1035,734]} 1. e4 {[%emt 0:00:45]} c5 {[%emt 0:00:29]} 2. Nf3 {[%emt 0:00:14]} e6 {[%emt 0:00:22]} 3. d4 {[%emt 0:01:01]} cxd4 {[%emt 0:00:09]} 4. Nxd4 {[%emt 0:00:03]} Nf6 {[%emt 0:00:10]} 5. Nc3 {[%emt 0:00:12]} Nc6 {[%emt 0:00:09]} 6. Nxc6 {[%emt 0:00:46]} bxc6 {[%emt 0:00:22]} 7. e5 {[%emt 0:00:07]} Nd5 {[%emt 0:00:09]} 8. Ne4 {[%emt 0:00:07]} Qc7 {[%emt 0:00:16]} 9. f4 {[%emt 0:00:09]} Qb6 {[%emt 0:00:05]} 10. c4 {[%emt 0:01:10]} Bb4+ {[%emt 0:00:17]} 11. Ke2 {[%emt 0:00:08]} f5 {[%emt 0:00:09]} 12. Nf2 {[%emt 0:01:17]} Ba6 {[%emt 0:03:37]} 13. Kf3 {[%emt 0:00:08]} Ne7 {[%emt 0:00:08]} 14. Be3 {[%emt 0:00:31]} Bc5 {[%emt 0:00:07]} 15. Bxc5 {[%emt 0:00:06] B45: Sicilian Four Knights.} Qxc5 {[%emt 0:00:05]} 16. Qd6 {[%emt 0:00:14]} Qb6 {[%emt 0:03:02]} 17. Be2 $5 {[%emt 0:01:23][%mdl 4] [#] White is slightly better. An interesting side line.} c5 $146 {[%emt 0:06:21]} (17... Rd8 $11 {is superior.}) ({Predecessor:} 17... g5 18. fxg5 Ng6 19. h4 Qb8 20. Qxb8+ Rxb8 21. b3 Nxe5+ 22. Kf4 Ng6+ 23. Kg3 d6 {1-0 (60) Milliet,S (2390)-Loiseau,Q (2455) Chartres 2021}) 18. Rhd1 $14 {[%emt 0:00:09]} Qxd6 {[%emt 0:15:09]} (18... Rd8 $14) 19. exd6 {[%emt 0:08:27]} ({White should try} 19. Rxd6 $16 Bb7+ 20. Ke3 (20. Kg3 Rg8 $16)) 19... Nc6 {[%emt 0:18:45]} 20. Rac1 {[%emt 0:01:10]} e5 {[%emt 0:06:35]} 21. fxe5 {[%emt 0:11:15]} Nxe5+ {[%emt 0:06:23]} 22. Kf4 {[%emt 0:00:13]} O-O {[%emt 0:05:06]} 23. Bh5 $36 {[%emt 0:00:38][%mdl 2048] White has some pressure.} Ng4 {[%emt 0:11:06]} (23... Nxc4 24. Bf3 Nxb2 25. Bxa8 Rxa8 26. Rd5 $16) 24. Nxg4 {[%emt 0:01:21]} fxg4+ {[%emt 0:00:08]} 25. Kg3 $1 {[%emt 0:01:31]} (25. Kxg4 g6 26. Rd5 gxh5+ 27. Kxh5 Rf2 28. Rxc5 Kh8 $19) 25... Rf6 $1 {[%emt 0:04:33]} 26. Bxg4 {[%emt 0:07:11]} Rg6 {[%emt 0:01:45]} (26... Bb7 $142) 27. Rd5 $1 $16 {[%emt 0:00:15] White is much more active.} Bb7 {[%emt 0:09:01]} (27... Re8 $16) 28. Rxc5 $18 {[%emt 0:00:08]} Bxg2 {[%emt 0:00:31][%cal Oa8f8]} 29. h4 {[%emt 0:05:48] aiming for h5.} (29. Kxg2 $6 Rxg4+ 30. Kf3 Rg6 $14) 29... Bc6 {[%emt 0:00:48]} 30. Rd1 {[%emt 0:01:10]} Rf8 {[%emt 0:01:53][%cal Oh7h5]} (30... Rb8 31. h5 Rf6 32. b4) 31. Rg5 {[%emt 0:01:12] Strongly threatening Rxg6.} Rgf6 {[%emt 0:00:17]} 32. b4 $1 {[%emt 0:15:28]} h6 {[%emt 0:04:12] [#]} 33. Rc5 {[%emt 0:04:33][%cal Oc5c6]} Rg6 {[%emt 0:00:49] [#]} (33... Bf3 $16 34. Rf1 Bxg4 35. Rxf6 Rxf6) 34. Rd4 $1 {[%emt 0:00:26] Black must now prevent h5.} Rf3+ {[%emt 0:03:55]} 35. Kh2 {[%emt 0:00:13]} Rf2+ {[%emt 0:00:08]} 36. Kh3 {[%emt 0:00:08]} Bf3 {[%emt 0:00:53]} (36... h5 37. Rxc6 (37. Bxh5 Bg2+ 38. Kh2 Bd5+ 39. Kh3 Bg2+ 40. Kh2 Bf1+ 41. Kh1 Bg2+ 42. Kh2 $11) (37. Rxh5 Rxa2 38. Ra5 Rxa5 $16) 37... hxg4+ 38. Rxg4 Rf3+ 39. Kg2 Rff6 40. Rc8+ Kf7 41. Rxg6 Rxg6+ 42. Kf3 Rxd6) 37. Kg3 {[%emt 0:04:47]} Rf1 {[%emt 0:00:25] Hoping for ...Bxg4.} 38. h5 {[%emt 0:00:43]} Rf6 {[%emt 0:00:37]} (38... Rxg4+ $142 39. Rxg4 Bxg4) 39. Bxd7 {[%emt 0:00:57]} Be2 {[%emt 0:00:31]} 40. Rf5 {[%emt 0:00:00] Black got outplayed after the opening.  Weighted Error Value: White=0.08 (flawless) /Black=0.36} 1-0

[Event "1st Chessable Sunway Formentera 2022"]
[Site "Formentera Punta Prima"]
[Date "2022.04.30"]
[Round "2"]
[White "Martirosyan, Haik M."]
[Black "Tsatsalashvili, Keti"]
[Result "1-0"]
[ECO "D60"]
[WhiteElo "2652"]
[BlackElo "2331"]
[Annotator "TA"]
[PlyCount "81"]
[EventDate "2022.05.05"]
[EventType "swiss"]
[EventCountry "ESP"]
[SourceTitle "playchess.com"]
[Source "ChessBase"]
[SourceQuality "1"]
[TimeControl "40/5400+30:1800+30"]

{[%evp 25,80,41,71,67,69,28,31,30,34,41,41,32,37,26,25,21,33,33,23,16,24,14,28,23,54,59,68,75,75,90,104,100,118,122,51,58,570,551,583,261,374,276,261,222,1247,1231,1227,488,29987,29988,29988,29989,29997,29998,29998,29999,29999]} 1. d4 {[%emt 0:00:05]} d5 {[%emt 0:00:20]} 2. c4 {[%emt 0:00:11]} e6 {[%emt 0:00:06]} 3. Nf3 {[%emt 0:00:27]} Nf6 {[%emt 0:00:25]} 4. Nc3 {[%emt 0:00:18]} c6 {[%emt 0:01:02]} 5. Bg5 {[%emt 0:01:15]} Be7 {[%emt 0:00:49]} 6. e3 {[%emt 0:00:47]} Nbd7 {[%emt 0:01:59]} 7. Bd3 {[%emt 0:01:35]} dxc4 {[%emt 0:02:22]} 8. Bxc4 {[%emt 0:00:07]} Nd5 {[%emt 0:00:06]} 9. Bxe7 {[%emt 0:03:18]} Qxe7 {[%emt 0:00:06]} 10. Qc2 {[%emt 0:01:34]} O-O {[%emt 0:04:39]} 11. O-O {[%emt 0:01:09]} Nxc3 {[%emt 0:02:47]} 12. bxc3 {[%emt 0:04:02]} e5 {[%emt 0:06:32]} 13. Bd3 {[%emt 0:03:59]} g6 {[%emt 0:10:58]} 14. a4 {[%emt 0:02:25] [#] D60: Queen's Gambit Declined: Classical: Unusual White 7th moves.} c5 $146 {[%emt 0:05:05]} ({Predecessor:} 14... Re8 15. e4 c5 16. Rfe1 cxd4 17. cxd4 exd4 18. Nxd4 Ne5 19. Bb5 Bd7 20. Qc7 Bxb5 21. Qxe7 Rxe7 22. axb5 {½-½ (57) Iotov,V (2189)-Taboas Rodriguez,D (2275) Marin 2002}) 15. a5 {[%emt 0:08:33] White is more active.} cxd4 {[%emt 0:09:10]} 16. cxd4 {[%emt 0:00:17] White is slightly better.} exd4 {[%emt 0:00:25]} 17. Nxd4 {[%emt 0:02:20]} Nc5 {[%emt 0:08:28]} 18. Be2 {[%emt 0:06:48]} Be6 {[%emt 0:03:33]} 19. Bf3 {[%emt 0:02:59]} Rac8 {[%emt 0:01:21][%cal Oc5b3] Strongly threatening ...Nb3!} 20. Qb2 {[%emt 0:00:29] Prevents Nb3.} Bc4 {[%emt 0:05:37]} 21. Rfd1 {[%emt 0:01:34]} Ba6 {[%emt 0:02:53]} 22. Qa3 {[%emt 0:05:29]} Qe5 {[%emt 0:04:25]} 23. h4 {[%emt 0:03:29]} Ne4 {[%emt 0:01:54]} 24. Rac1 {[%emt 0:03:19][%cal Oh4h5]} Rxc1 {[%emt 0:00:58]} 25. Rxc1 {[%emt 0:02:15]} Nd2 {[%emt 0:02:09]} 26. Bd1 {[%emt 0:01:35]} Nc4 {[%emt 0:10:07]} 27. Qb4 {[%emt 0:00:33]} Nxe3 {[%emt 0:08:21]} 28. Nf3 $1 {[%emt 0:00:49]} Qe6 {[%emt 0:00:56] [#]} 29. Ng5 $1 {[%emt 0:02:20][%mdl 1024] White has strong compensation.} Qe5 {[%emt 0:00:26]} 30. Bb3 $40 {[%emt 0:01:05][%mdl 128] White is up to no good. Chess con chili.} Nf1 $2 {[%emt 0:06:29][%mdl 8192] Loses the game.} 31. Nf3 $18 {[%emt 0:01:11]} (31. Rxf1 Bxf1 32. Kxf1 h6 33. Nxf7 Qa1+ 34. Ke2 Qb2+ 35. Kf3 Qf6+ 36. Qf4 Qxf7 37. Qxf7+ (37. Bxf7+ Rxf7 38. Kg3 Rxf4 $11) 37... Rxf7+ 38. Ke4 Kg7 39. Bxf7 Kxf7 $11) 31... Qb8 {[%emt 0:00:17]} 32. Bc4 {[%emt 0:06:07] Prevents Be2.} ({Not} 32. Rxf1 Bxf1 33. Kxf1 b6 $16) (32. h5 $142 {White threatens h6 and mate.} Kg7 33. hxg6 hxg6 34. Qd4+ (34. Rxf1 Bxf1 35. Qd4+ Kh6 $16) 34... Kh6 35. Ne5 (35. Rxf1 Bxf1 36. Kxf1 Qd8 $16)) 32... Rc8 {[%emt 0:00:26]} (32... Qc7 $142 33. Qc3 (33. Kxf1 Rc8 $16) 33... Bxc4) 33. Rc3 {[%emt 0:00:36][%cal Bc1c3,Bc3c4,Bc4d4][%mdl 32]} ({Weaker is} 33. Kxf1 b6 $16) 33... Rxc4 {[%emt 0:01:10]} 34. Rxc4 {[%emt 0:00:07]} Qd8 {[%emt 0:00:34]} (34... Bxc4 35. Qxc4 Qd8) 35. Rd4 {[%emt 0:00:51]} Qc7 {[%emt 0:00:05]} 36. Qd6 {[%emt 0:01:25]} (36. Rd5 $142 {Threatening mate with Qd4.} f6 37. Qd4) 36... Qc1 {[%emt 0:00:28]} (36... Qxd6 $18 37. Rxd6 Kf8 38. Rd8+ Ke7) 37. Qb8+ {[%emt 0:01:32] White mates.} Kg7 {[%emt 0:00:07]} 38. Qe5+ {[%emt 0:00:05]} f6 {[%emt 0:00:16]} 39. Qe7+ {[%emt 0:00:09]} Kh6 {[%emt 0:00:08]} 40. Qf8+ {[%emt 0:00:00]} Kh5 {[%emt 0:00:00]} 41. g4# {[%emt 0:00:10] Weighted Error Value: White=0.30/Black=0.61} 1-0